Cogmind - Beta 13 @@@ ROGUE MODE // 2024.07.26 @ 17:45:35 Player: OctagonalPrism Result: Destroyed by S-10 Pest with Light Assault Rifle Performance ------------- Evolutions (1) 500 Regions Visited (3) 600 Robots Destroyed (45) 225 Value Destroyed (1142) 1142 Prototype IDs (1) 20 Alien Tech Used (0) 0 Bonus (8) 8 TOTAL SCORE: 2495 Bonus ------- High Alert Combat Kills 8 Cogmind --------- Core Integrity 0/400 Matter 294/300 Energy 84/100 System Corruption 0% Temperature Cool (53) Movement Rolling (90) Location -9/Storage Parts ------- > --- POWER (1) -------- (None) > --- PROPULSION (2) --- Armored Wheel > --- UTILITY (4) ------ Medium Storage Unit Signal Interpreter Transport Network Coupler > --- WEAPON (2) ------- Small Laser > --- INVENTORY (10) --- Armored Wheel Sensor Array Improved Terrain Scanner Katana Peak State ------------ > --- POWER ------------ Improved Ion Engine > --- PROPULSION ------- Improved Treads Improved Treads > --- UTILITY ---------- Improved Heat Sink Medium Storage Unit Signal Interpreter Hardened Light Armor Plating > --- WEAPON ----------- Small Laser Heavy Assault Rifle > --- INVENTORY -------- Ion Engine Ion Engine Sensor Array Improved Terrain Scanner Transport Network Coupler Light Armor Plating Hardened Light Armor Plating Light Assault Rifle Heavy Assault Rifle [Rating: 17] Favorites ----------- Power Ion Engine Engine Ion Engine Propulsion Wheel Treads Improved Treads Leg Aluminum Leg Wheel Wheel Utility Signal Interpreter Device Improved Heat Sink Storage Medium Storage Unit Processor Signal Interpreter Protection Hardened Light Armor Plating Weapon Heavy Assault Rifle Energy Gun Small Laser Ballistic Gun Heavy Assault Rifle Build | -11 -10 -9 -9 ------- Run | Yrd Mat Mat Sto Slots Evolved 2 | . . 2 . Power . | . . . . Propulsion . | . . . . Utility 2 | . . 2 . Weapon . | . . . . Parts Attached 42 | 7 1 16 18 Power 6 | 1 1 1 3 Engine 6 | 1 1 1 3 Core . | . . . . Reactor . | . . . . Propulsion 8 | 2 . 4 2 Treads 2 | . . 2 . Leg 2 | . . 2 . Wheel 4 | 2 . . 2 Hover . | . . . . Flight . | . . . . Utility 17 | 2 . 6 9 Device 7 | 1 . 2 4 Storage 2 | 1 . 1 . Processor 2 | . . 1 1 Hackware . | . . . . Protection 6 | . . 2 4 Artifact . | . . . . Weapon 11 | 2 . 5 4 Energy Gun 5 | 1 . 3 1 Energy Cannon . | . . . . Ballistic Gun 6 | 1 . 2 3 Ballistic Cannon . | . . . . Launcher . | . . . . Special Weapon . | . . . . Impact Weapon . | . . . . Slashing Weapon . | . . . . Piercing Weapon . | . . . . Special Melee Weapon . | . . . . Unidentified Prototypes 1 | . . 1 . Parts Lost 16 | . 1 4 11 Power 5 | . 1 1 3 Propulsion 3 | . . 2 1 Utility 3 | . . . 3 Weapon 5 | . . 1 4 Highest Loss Streak 10 | . 1 4 10 To Critical Strikes 1 | . 1 . . Average Slot Usage (%) 97 | . 94 97 98 Engine 10 | . 8 10 10 Treads 8 | . . 2 18 Leg 1 | . . 4 . Wheel 12 | . 28 14 3 Device 10 | . 14 11 9 Storage 11 | . 14 11 11 Processor 10 | . . 11 16 Protection 6 | . . 10 7 Energy Gun 11 | . 14 11 10 Ballistic Gun 11 | . 14 11 10 Naked Turns . | . . . . Heaviest Build 27 | 14 14 27 27 Greatest Support 46 | 20 20 46 46 Greatest Overweight (x) 6 | . . 6 1 Average Overweight (x) . | . . . . Largest Inventory Capacity 10 | 8 8 10 10 Average Capacity 9 | 7 8 9 10 Most Carried 10 | 1 4 7 10 Average Carried 5 | . 2 4 7 Final Capacity 10 | 8 8 10 10 Final Carried 6 | 1 3 6 4 Class Distribution -------------------- 79% | Mutant 20% | Scavenger-Mutant Dominant Class ---------------- Mutant | -10/Materials Mutant | -9/Materials Mutant | -9/Storage Resources | -11 -10 -9 -9 ----------- Run | Yrd Mat Mat Sto Matter Collected 786 | 263 39 206 278 Remotely . | . . . . Salvage Created 1591 | 40 261 524 766 Parts 103 | 6 21 33 43 Haulers Intercepted 2 | . . 1 1 Recyclers Shooed . | . . . . Parts Field Recycled . | . . . . Retrieved Matter . | . . . . Parts Self-Destructed . | . . . . Prevented . | . . . . Kills | -11 -10 -9 -9 ------- Run | Yrd Mat Mat Sto Combat Hostiles Destroyed 37 | . 10 11 16 Guns 37 | . 10 11 16 Classes Destroyed 9 | 1 3 2 3 Worker 1 | . . . 1 Tunneler 2 | 2 . . . Hauler 2 | . . 1 1 Operator 1 | . . . 1 Watcher 2 | . 1 1 . Swarmer 11 | . 6 3 2 Grunt 20 | . 4 6 10 Duelist 1 | . . . 1 Sentry 5 | . . 2 3 Best Kill Streak 7 | 2 3 4 7 Combat Bots Only 7 | . 3 4 7 Max Kills in Single Turn 2 | 1 1 1 2 Gunslinging . | . . . . Exploded . | . . . . Melee . | . . . . Uniques/NPCs Destroyed . | . . . . Combat | -11 -10 -9 -9 -------- Run | Yrd Mat Mat Sto Hostile Shots Fired 303 | . 44 53 206 Missed 77 | . 10 12 55 Damage Taken 2700 | . 312 521 1867 Core 499 | . 96 59 344 Absorbed by Shields . | . . . . Core Remaining (%) 80 | 100 61 . . Volleys Fired 133 | 3 32 30 68 Largest 2 | 2 2 2 2 Hottest 70 | 70 70 68 63 Shots Fired 248 | 6 64 59 119 Gun 248 | 6 64 59 119 Cannon . | . . . . Launcher . | . . . . Special . | . . . . Kinetic 126 | 3 32 30 61 Thermal 101 | 3 32 8 58 Explosive . | . . . . Electromagnetic 21 | . . 21 . Robot Hit Streak 13 | 3 7 10 13 Robot Miss Streak 3 | 1 2 3 3 Penetration Max . | . . . . Secondary Targets 7 | . 1 2 4 Max Gunslinging Chain 1 | . 1 1 1 Shots Hit Robots 169 | 4 41 44 80 Core Hits 77 | 3 19 22 33 Critical Kills 1 | . . 1 . Critical Parts Destroyed 2 | . . . 2 Critical Strikes 5 | . 2 1 2 Burn 2 | . 2 . . Destroy 3 | . . 1 2 Melee Attacks . | . . . . Impact . | . . . . Slashing . | . . . . Piercing . | . . . . Sneak Attacks . | . . . . Combat Hostiles . | . . . . Follow-up Attacks . | . . . . Damage Inflicted 2241 | 45 446 660 1090 Guns 2213 | 45 446 632 1090 Cannons . | . . . . Explosions 28 | . . 28 . Melee . | . . . . Ramming . | . . . . Kinetic 1101 | 7 195 216 683 Thermal 804 | 38 251 108 407 Explosive . | . . . . Electromagnetic 336 | . . 336 . Impact . | . . . . Slashing . | . . . . Piercing . | . . . . Highest Corruption . | . . . . Average Corruption . | . . . . Corruption Purged . | . . . . Corruption Blocked . | . . . . Overload Shots . | . . . . Overflow Damage . | . . . . Projectiles . | . . . . Explosions . | . . . . Melee . | . . . . Knockbacks . | . . . . Impact . | . . . . Kinetic . | . . . . Secondary . | . . . . Self-Inflicted Damage 35 | . . 35 . Shots 1 | . . 1 . Rammed . | . . . . Targets Rammed . | . . . . Kicked . | . . . . Crushed . | . . . . Highest Temperature 315 | 40 274 131 315 Average Temperature 78 | 21 87 50 89 Received Heat Transfer 906 | . 96 228 582 Effects 6 | . 3 . 3 Interference 6 | . 3 . 3 Siege Activations . | . . . . Robots Corrupted . | . . . . Combat Hostiles . | . . . . Parts Fried 2 | . . 2 . Impact Corruptions . | . . . . Robots Melted . | . . . . Combat Hostiles . | . . . . Parts Melted 1 | . 1 . . Heat Transferred 2087 | 111 851 225 900 Parts Sabotaged . | . . . . Parts Stolen . | . . . . Parts Stripped . | . . . . Power Chain Reactions 1 | . . 1 . Alert | -11 -10 -9 -9 ------- Run | Yrd Mat Mat Sto Peak Influence 426 | 10 389 426 331 Initial 163 | . 6 163 94 Average 240 | 1 217 302 231 Maximum Alert Level 2 | . 1 2 1 Low Security (%) 38 | 100 49 22 38 Level 1 54 | . 50 53 61 Level 2 7 | . . 23 . Level 3 . | . . . . Level 4 . | . . . . Level 5 . | . . . . High Security . | . . . . Max Security . | . . . . Squads Dispatched 9 | . 3 1 5 Investigation 4 | . 2 1 1 Extermination . | . . . . Reinforcement 3 | . 1 . 2 Assault . | . . . . Garrison 2 | . . . 2 Intercept . | . . . . Searches Triggered . | . . . . Construction Impeded . | . . . . Haulers Reinforced . | . . . . Active Scanning Responses . | . . . . Cargo Convoy Interrupts . | . . . . Stealth | -11 -10 -9 -9 --------- Run | Yrd Mat Mat Sto Distress Signals 4 | . . 1 3 Communications Jammed . | . . . . Distress Signals . | . . . . Times Spotted 50 | . 14 12 24 Peak Tracking Total 7 | . 3 5 7 Tactical Retreats 2 | . 2 . . Traps | -11 -10 -9 -9 ------- Run | Yrd Mat Mat Sto Traps Triggered 2 | . 1 . 1 Indirectly . | . . . . Trap Hack Attempts . | . . . . Triggered . | . . . . Disarmed . | . . . . Reprogrammed . | . . . . Reused . | . . . . Traps Extracted . | . . . . Installed . | . . . . Triggered . | . . . . Machines | -11 -10 -9 -9 ---------- Run | Yrd Mat Mat Sto Machines Disabled . | . . . . Max in Single Turn . | . . . . Machines Repaired . | . . . . Machines Dismantled . | . . . . Machines Sabotaged . | . . . . Overloaded Fab Kills . | . . . . Hacking | -11 -10 -9 -9 --------- Run | Yrd Mat Mat Sto Machines Accessed 8 | . 3 2 3 Terminals 6 | . 2 1 3 Fabricators . | . . . . Repair Stations 1 | . 1 . . Recycling Units . | . . . . Scanalyzers 1 | . . 1 . Garrison Access . | . . . . Total Hacks 19 | . 9 5 5 Successful 11 | . 6 3 2 Failed 8 | . 3 2 3 Catastrophic 1 | . . 1 . Database Lockouts . | . . . . Manual 7 | . 5 2 . Terminals 15 | . 8 2 5 Fabricators . | . . . . Repair Stations 1 | . 1 . . Recycling Units . | . . . . Scanalyzers 3 | . . 3 . Garrison Access . | . . . . Terminal Hacks 4 | . 2 . 2 Robot Analysis 2 | . 1 . 1 Open Door 1 | . . . 1 Zone Layout 1 | . 1 . . Fabricator Hacks . | . . . . Repair Station Hacks . | . . . . Recycling Unit Hacks . | . . . . Scanalyzer 3 | . . 3 . Insert Component 1 | . . 1 . Analyze 2 | . . 2 . Garrison Access Hacks . | . . . . Unauthorized Hacks 4 | . 4 . . Terminals 3 | . 3 . . Botnet 2 | . 2 . . Operators 1 | . 1 . . Fabricators . | . . . . Repair Stations 1 | . 1 . . Mechanics 1 | . 1 . . Recycling Units . | . . . . Scanalyzers . | . . . . Garrison Access . | . . . . Data Cores Recovered . | . . . . Used . | . . . . Hacking Detections 7 | . 3 2 2 Full Trace Events 3 | . 1 1 1 Feedback Events . | . . . . Feedback Blocked . | . . . . Robot Schematics Acquired . | . . . . Robots Built . | . . . . Authchips . | . . . . Time . | . . . . Total Robot Build Rating . | . . . . Part Schematics Acquired . | . . . . Parts Built . | . . . . Authchips . | . . . . Time . | . . . . Total Part Build Rating . | . . . . Parts Repaired . | . . . . Time . | . . . . Parts Recycled . | . . . . Recycled Matter . | . . . . Retrieved Matter . | . . . . Retrieved Components . | . . . . Parts Scanalyzed 1 | . . 1 . Part Schematics Acquired . | . . . . Parts Damaged . | . . . . Bothacking | -11 -10 -9 -9 ------------ Run | Yrd Mat Mat Sto Used RIF Installer . | . . . . Robots Hacked . | . . . . Non-combat . | . . . . Combat . | . . . . Robot Hacks Applied . | . . . . Relay Couplers Released . | . . . . Fabnet Peak Effective % . | . . . . Robots Rewired . | . . . . Allies Hacked . | . . . . Hacks Repelled . | . . . . Allies | -11 -10 -9 -9 -------- Run | Yrd Mat Mat Sto Total Allies . | . . . . Largest Group . | . . . . Highest-Rated Group . | . . . . Highest-Rated Ally . | . . . . Total Orders . | . . . . Ally Attacks . | . . . . Total Damage . | . . . . Kills . | . . . . Allies Corrupted . | . . . . Allies Melted . | . . . . Intel | -11 -10 -9 -9 ------- Run | Yrd Mat Mat Sto Robot Analysis Total 2 | . 1 . 1 Derelict Logs Recovered . | . . . . Drone Launches . | . . . . Drone Recoveries . | . . . . Exploration | -11 -10 -9 -9 ------------- Run | Yrd Mat Mat Sto Turns Passed 1440 | 62 328 439 611 Spaces Moved 803 | 52 261 266 224 Core 2 | 1 . 1 . Treads 216 | . . 19 197 Legs 46 | . . 46 . Wheels 539 | 51 261 200 27 Hover . | . . . . Flight . | . . . . Fastest Speed 50 | 50 80 80 90 Average Speed 110 | 79 80 110 151 Slowest Speed 350 | 80 80 350 160 Overloaded Moves . | . . . . Propulsion Burnouts . | . . . . Robots Hopped . | . . . . Cave-ins Triggered . | . . . . Exploration Rate (%) 22 | 3 34 22 32 Regions Visited 3 Branch Regions 1 Pre-discovered Areas . | . . . . Known Exits Taken 1 | . . 1 . Unknown Exits Taken 2 | 1 1 . . Scrap Searched . | . . . . Spaces Dug . | . . . . Terrain Destroyed 2 | . . 2 . Melee . | . . . . Projectile . | . . . . AOE 2 | . . 2 . Terrain Rammed . | . . . . Walls Destroyed . | . . . . Machines Disabled . | . . . . Actions | -11 -10 -9 -9 --------- Run | Yrd Mat Mat Sto Total 1119 | 63 322 356 378 Wait 111 | 1 26 27 57 Move 800 | 51 260 265 224 Hop . | . . . . Pick Up 16 | 1 3 7 5 Fast Attach 16 | 7 . 6 3 Attach 15 | . 1 5 9 Detach 4 | . . 2 2 Swap 11 | . . 5 6 Drop 13 | . . 9 4 Fire 133 | 3 32 30 68 Melee . | . . . . Ram . | . . . . Kick . | . . . . Crush . | . . . . Escape Stasis . | . . . . Rewire . | . . . . Trap . | . . . . Miscellaneous . | . . . . Route ------- -11/Scrapyard -10/Materials (discovered 2 exits: *Mat / [*Min]) -9/Materials -9/Storage History --------- Turn | Location | Event 10 | -11/Scrapyard | Discovered new exit (range 16) 63 | -11/Scrapyard | Entered Materials 188 | -10/Materials | Discovered new exit (range 4) 309 | -10/Materials | Build established: Mutant 354 | -10/Materials | Discovered new exit (range 13) 391 | -10/Materials | Entered another Materials area 391 | -9/Materials | Evolved 2 slots: Utility x2 717 | -9/Materials | Lost 4 parts (1p2n1w) 766 | -9/Materials | Discovered new exit (range 7) 828 | -9/Materials | Identified exit to Storage 830 | -9/Materials | Entered Storage 1207 | -9/Storage | Garrison activated, responded to threat 1311 | -9/Storage | Destroyed 7 combat bots 1383 | -9/Storage | Garrison activated, responded to threat 1395 | -9/Storage | Core integrity fell below 50% 1414 | -9/Storage | Core integrity fell below 20% 1441 | -9/Storage | Destroyed by S-10 Pest with Light Assault Rifle Last Messages --------------- Ion Engine destroyed. Acquired Katana. G-34 Mercenary destroyed. Acquired 38 matter. K-01 Serf collects debris. Acquired Sml. Laser. K-01 Serf collects debris. Hrd. Light Armor Plating destroyed. K-01 Serf collects debris. S-10 Pest destroyed. Lgt. Assault Rifle destroyed. Arm. Wheel destroyed. K-01 Serf collects debris. Hrd. Light Armor Plating destroyed. G-34 Mercenary destroyed. K-01 Serf collects debris. Ion Engine destroyed. Imp. Heat Sink destroyed. K-01 Serf collects debris. Critical hit (Burn: +37). Map ----- +----------------------------------------------------+ | ????????????? %!%*#### | | ????????????? *!%[!= | | ????????????????# =##+######+# | | ????????????????# #T%#??## | | ????????????????# ##"#??#T | | ????????????????#### #?????##" " | | ??????????????"????# ##?????#= = | | ?????????????? ????# [ #?????#= = | | ?????????????? ???######## #??????#= = | | ?????????????#+#??# # a #??????#= = | | ????#????????# #??# # #??????#### | | ????# ???????# #??# """ # #?????????? | | ????# ######## #### """ #%%= #?????????? | | ????# ^ + """ + #?????????? | | ????# #### # #?????????? | | ????# = #??#####+## #?????????? | | ????# =!!#??????# #?????????? | | ????#### =! #??????# ##### #?????????? | | ???????# ==! #??????# #???? #?????????? | | ???????# *% =#??????+ ????? #?????????? | | ???????# %#??????# ????? #?????????? | | ?????### !#??????# ????? #?????????? | | ?????#"" !!!= #??????# ?????? ????a????? | | ?????#"" !!!%=#??????? ????????????????? | | ?????#"T !!!!%######## #???????????????? | | ?????#"" % %@ #???????????????? | | ?????#"" =Y=k #???????????????? | | ?????### s #???????????????? | | ???????# s + ????????????? | | ???????#+########## ###### ??????????? | | ??????????????????? #???????????????????? | | ????????????????????#???????????????????? | | ???????????????????a????????????????????? | | ????????????????????????????????????????? | | ????????????????????????????????????????? | | ????????????????????????????????????????? | | ????????????????????????????????????????? | | ????????????????????????????????????????? | | ????????????????????????????????????????? | | ???????????????????????????????????????a? | | ????????????????????????????????????????? | | ????????????????????????????????????????? | | ????????????????????????????????????????? | | ????????????????????????????????????????? | | ????????????????????????????????????????? | | ????????????????????????????????????????? | | ????????????????????????????????????????? | | ????????????????????????????????????????? | | ????????????????????????????????????????? | | ????????????????????????????????????????? | +----------------------------------------------------+ Best States ------------- Heat Dissipation 42 Energy Generation 12 Energy Capacity 265 Matter Stores 300 Matter Capacity 300 Sight Range 16 Robot Scan Range 14 Terrain Scan Range 16 Terrain Scan Density 10 Armor Coverage 300 Evasion (%) 44 Recoil Reduction 2 Item Schematics ----------------- None Robot Schematics ------------------ None Fabricated ------------ Nothing Alien Tech Used ----------------- None Achievements -------------- None Challenges ------------ None Game ------ Seed UltimateAntimissileRifle Manual? 0 Play Time 00:21:43 Cumulative 35.6 hours Start 2024.07.26 @ 17:25:30 End 2024.07.26 @ 17:45:35 Sessions 1 Manual Loads 0 Difficulty Rogue Special Mode None Game No. 32 Rogue 32 Adventurer 0 Explorer 0 Win Type - Total 0 Types 0/0/0/0/0/0/0/0/0 Lore% 24 Gallery% 32 Achievement% 23 Wizard Run 0 Options --------- Layout 1 ASCII 0 Keyboard 0 Movement Mouse Keybinds 0 Fullscreen 1 Font 16/Terminus Map View 55x38 Zoom Use 0% Tactical HUD 0 Map Filters NONE Filters NONE Steam 1 RUN: a40232fe-97af-40c6-a941-1469bc8d7fc4